bitfinex/quotes_SOLUSD_20260305
["timestamp","ask_amount","ask_price","bid_price","bid_amount"]
[1772736725114,11.29330984,88.548,88.522,0.68746717]
[1772736725313,0.28432314,88.564,88.522,0.68746717]
[1772736725314,7.10526524,88.574,88.522,0.68746717]
[1772736725727,11.29012227,88.573,88.522,0.68746717]
[1772736726326,11.29012227,88.573,88.524,0.68746717]
[1772736726529,4.30051874,88.57,88.524,0.68746717]
[1772736726737,0.28432314,88.569,88.524,0.68746717]
[1772736727133,4.30051874,88.57,88.524,0.68746717]
[1772736728433,11.29063216,88.569,88.526,0.68746717]
[1772736729739,39.51721256,88.569,88.526,0.68746717]
[1772736732339,4.30051874,88.56,88.528,0.68746717]
[1772736732639,4.30051874,88.55,88.52,12.18426011]
[1772736732815,0.28432314,88.559,88.521,0.68746717]
[1772736733740,0.28432314,88.568,88.521,0.68746717]
[1772736735121,0.28432314,88.566,88.523,0.68746717]
[1772736735729,4.30051874,88.56,88.523,0.68746717]
[1772736738843,11.29190709,88.559,88.524,11.2963716]
[1772736739040,11.29190709,88.559,88.525,0.68746717]
[1772736739648,4.30051874,88.57,88.525,0.68746717]
[1772736740539,39.51542795,88.573,88.525,0.68746717]
[1772736740540,4.30051874,88.56,88.525,0.68746717]
[1772736741541,11.29190709,88.559,88.526,11.29611639]
[1772736741852,11.29190709,88.559,88.527,0.68746717]
[1772736742769,39.52167481,88.559,88.527,0.68746717]
[1772736747456,0.6718988,88.529,88.5,0.2]
[1772736747755,0.6718988,88.529,88.501,11.29930735]
[1772736748151,4.30051874,88.53,88.501,11.29930735]
[1772736748334,4.30051874,88.53,88.5,0.2]
[1772736748748,40.00653592,88.529,88.5,0.2]
[1772736749154,0.47125535,88.528,88.5,0.2]
[1772736749358,0.47125535,88.528,88.501,0.64305217]
[1772736751339,11.29598879,88.527,88.501,0.64305217]
[1772736751539,11.29598879,88.527,88.503,0.64700309]
[1772736752957,39.53596077,88.527,88.503,0.64700309]
[1772736753256,11.29598879,88.527,88.503,0.64700309]
[1772736753568,11.29598879,88.527,88.505,0.64700309]
[1772736753858,11.2954499,88.532,88.505,0.64700309]
[1772736754353,4.7705121,88.53,88.505,0.64700309]
[1772736754558,0.46999336,88.529,88.505,0.64700309]
[1772736755055,11.2954499,88.532,88.505,0.64700309]
[1772736755666,11.29471294,88.537,88.505,0.64700309]
[1772736756161,0.6209447,88.529,88.5,0.2]
[1772736756547,0.6209447,88.519,88.5,0.2]
[1772736756944,0.6209447,88.532,88.5,11.49938417]
[1772736757145,4.92146344,88.53,88.5,11.49938417]
[1772736757465,0.6209447,88.529,88.5,0.2]
[1772736758044,4.30051874,88.52,88.5,0.2]
[1772736758366,0.6209447,88.527,88.502,0.64700309]
[1772736759644,11.29586119,88.528,88.502,0.64700309]
[1772736759972,0.6209447,88.548,88.504,0.64700309]
[1772736761366,11.29356492,88.546,88.506,0.64700309]
[1772736761768,11.29254466,88.554,88.506,0.64700309]
[1772736763452,11.29254466,88.554,88.508,0.64700309]
[1772736765281,0.6209447,88.553,88.508,0.64700309]
[1772736765958,11.29279971,88.552,88.51,0.64700309]
[1772736766450,11.29279971,88.552,88.51,0.93132623]
[1772736766655,104.0,88.633,88.514,0.64700309]
[1772736766656,0.6209447,88.58,88.514,0.64700309]
[1772736768158,39.51185919,88.581,88.512,3.69383402]
[1772736768159,11.28910262,88.581,88.519,0.93132623]
[1772736768366,11.28910262,88.581,88.52,0.64700309]
[1772736768782,0.6209447,88.579,88.52,0.64700309]
[1772736770088,0.28432314,88.576,88.521,39.53864054]
[1772736770291,0.6209447,88.575,88.522,0.64700309]
[1772736771568,0.6209447,88.569,88.522,0.64700309]
[1772736772791,0.6209447,88.567,88.524,0.64700309]
[1772736773808,0.6209447,88.549,88.518,0.64700309]
[1772736774971,0.6209447,88.547,88.52,0.64700309]
[1772736777895,11.29356492,88.546,88.521,11.29675444]
[1772736778094,11.29356492,88.546,88.522,0.64700309]
[1772736778299,0.6209447,88.563,88.522,0.64700309]
[1772736779391,11.29152458,88.562,88.524,0.64700309]
[1772736779796,11.28935752,88.579,88.524,0.64700309]
[1772736780095,0.6209447,88.578,88.524,0.64700309]
[1772736781802,0.67700621,88.569,88.526,0.64944284]
[1772736783881,0.67700621,88.567,88.528,0.64944284]
[1772736784391,11.29075964,88.568,88.528,0.64944284]
[1772736785901,0.67700621,88.567,88.53,0.64944284]
[1772736787280,11.29075964,88.568,88.53,0.64944284]
[1772736789204,0.67700621,88.567,88.532,0.64944284]
[1772736793908,0.67700621,88.565,88.532,0.64944284]
[1772736794100,0.67700621,88.565,88.534,0.64944284]
[1772736794993,0.67700621,88.559,88.517,0.64944284]
[1772736795794,11.29203459,88.558,88.518,39.53998056]
[1772736795996,11.29203459,88.558,88.519,0.64944284]
[1772736796409,0.67700621,88.59,88.52,0.64944284]
[1772736796717,0.67700621,88.59,88.523,0.64944284]
[1772736796896,0.67700621,88.586,88.523,0.64944284]
[1772736797805,0.67700621,88.584,88.528,0.64944284]
[1772736798918,11.28789821,88.591,88.529,0.64944284]
[1772736799489,0.67700621,88.598,88.531,0.64944284]
[1772736799710,0.67700621,88.605,88.531,0.64944284]
[1772736799920,0.67700621,88.603,88.537,0.64944284]
[1772736804016,0.67700621,88.599,88.54,0.64944284]
[1772736806302,0.67700621,88.589,88.542,0.64944284]
[1772736808505,0.6245258,88.587,88.544,0.66436119]
[1772736812109,0.6245258,88.587,88.546,0.66382688]
[1772736813008,11.28846544,88.586,88.546,0.66382688]
[1772736813432,0.66458492,88.605,88.547,0.66382688]
[1772736813730,0.66458492,88.634,88.563,0.66382688]
[1772736813913,11.28322417,88.628,88.563,0.66382688]
[1772736814116,0.66458492,88.634,88.563,0.66382688]
[1772736814319,0.66458492,88.62,88.568,0.66382688]
[1772736814514,0.66458492,88.619,88.568,0.66382688]
[1772736814838,39.49402511,88.621,88.568,0.66382688]
[1772736814839,0.66458492,88.609,88.568,0.66382688]
[1772736815834,0.66458492,88.616,88.568,0.66382688]
[1772736817640,0.66458492,88.615,88.571,0.66382688]
[1772736818011,0.66458492,88.614,88.571,0.66382688]
[1772736818624,0.66458492,88.609,88.571,0.66382688]
[1772736819614,0.66458492,88.607,88.572,11.95407662]
[1772736819810,0.66458492,88.607,88.572,11.29024974]
[1772736821315,0.66458492,88.619,88.573,0.66382688]
[1772736821522,0.66458492,88.615,88.573,0.66382688]
[1772736821732,0.66458492,88.613,88.575,0.66382688]
[1772736822428,0.66458492,88.613,88.574,11.2899948]
[1772736822733,0.66458492,88.613,88.575,0.66382688]
[1772736823342,0.66458492,88.609,88.556,0.66382688]
[1772736823650,0.66458492,88.607,88.558,0.66382688]
[1772736825339,0.66458492,88.612,88.559,0.66382688]
[1772736826523,0.66458492,88.612,88.558,0.28432314]
[1772736826524,0.66458492,88.627,88.564,0.66382688]
[1772736826737,11.28205006,88.637,88.573,0.66382688]
[1772736826934,11.28205006,88.637,88.574,0.66382688]
[1772736827544,11.28152278,88.641,88.581,0.66382688]
[1772736827844,0.66458492,88.64,88.584,0.66382688]
[1772736828638,0.66458492,88.638,88.587,0.66382688]
[1772736829646,0.66458492,88.629,88.587,0.66382688]
[1772736830943,0.66458492,88.626,88.579,0.66382688]
[1772736831843,0.66458492,88.624,88.58,11.28923007]
[1772736832238,0.66458492,88.624,88.58,11.95305695]
[1772736832628,0.66458492,88.624,88.581,0.66382688]
[1772736833931,0.66458492,88.622,88.583,0.66382688]
[1772736836351,0.66458492,88.62,88.584,11.95254719]
[1772736837146,0.66458492,88.618,88.586,11.28846544]
[1772736837352,0.66458492,88.618,88.587,0.66382688]
[1772736838249,11.28451651,88.617,88.589,0.66382688]
[1772736838550,0.66458492,88.616,88.589,0.66382688]
[1772736838752,11.28402885,88.621,88.589,0.66382688]
[1772736838955,0.66458492,88.62,88.589,0.66382688]
[1772736840953,28.83034561,88.631,88.591,0.60720496]
[1772736841366,0.62340567,88.63,88.591,0.60720496]
[1772736842960,0.62340567,88.638,88.591,0.60720496]
[1772736843144,11.90537595,88.637,88.593,0.60720496]
[1772736843341,0.62340567,88.636,88.593,0.60720496]
[1772736845262,0.62340567,88.634,88.595,0.60720496]
[1772736847765,0.62340567,88.652,88.597,0.60720496]
[1772736848965,0.62340567,88.651,88.599,0.60720496]
[1772736849174,0.2,88.66,88.602,0.60720496]
[1772736849346,0.1,88.68,88.602,0.60720496]
[1772736849347,0.62340567,88.678,88.652,0.60720496]
[1772736849648,1e-08,88.67,88.652,0.60720496]
[1772736850452,1e-08,88.67,88.625,0.28432314]
[1772736850453,1e-08,88.67,88.645,0.60720496]
[1772736850765,1e-08,88.67,88.576,18.67906455]
[1772736850766,0.62340567,88.669,88.601,3.69383402]
[1772736850962,0.62340567,88.668,88.602,43.48065145]
[1772736851365,0.62340567,88.659,88.602,39.50249429]
[1772736851869,0.62340567,88.649,88.602,39.50249429]
[1772736852552,0.62340567,88.649,88.602,11.28642694]
[1772736852773,0.62340567,88.649,88.603,0.60720496]
[1772736852961,0.62340567,88.647,88.604,11.28617218]
[1772736853267,0.62340567,88.647,88.605,0.60720496]
[1772736853642,0.62340567,88.647,88.605,0.8915281]
[1772736853850,1e-08,88.67,88.607,0.60720496]
[1772736854444,1e-08,88.67,88.619,3.69383402]
[1772736854669,1e-08,88.67,88.622,0.60720496]
[1772736854971,1e-08,88.67,88.63,0.60720496]
[1772736855267,1e-08,88.67,88.632,0.60720496]
[1772736855844,1e-08,88.67,88.634,0.60720496]
[1772736856170,1e-08,88.67,88.636,0.8915281]
[1772736856349,1e-08,88.67,88.637,0.60720496]
[1772736857151,1e-08,88.67,88.641,0.60720496]
[1772736858051,1e-08,88.67,88.643,0.60720496]
[1772736859371,1e-08,88.67,88.629,3.69383402]
[1772736859372,1e-08,88.67,88.631,11.28273403]
[1772736859776,1e-08,88.67,88.631,11.88993899]
[1772736864089,0.62340567,88.659,88.611,0.60720496]
[1772736864400,0.62340567,88.649,88.604,11.28617218]
[1772736865087,0.62340567,88.639,88.585,0.60720496]
[1772736865284,0.62340567,88.629,88.585,11.89579783]
[1772736866082,0.62340567,88.628,88.588,0.60720496]
[1772736868784,0.62340567,88.628,88.59,0.60817992]
[1772736870076,0.6191972,88.626,88.59,0.60817992]
[1772736870478,0.6191972,88.626,88.589,11.28808317]
[1772736870776,0.6191972,88.626,88.589,11.91140281]
[1772736871181,0.61262478,88.624,88.59,0.62331964]
[1772736872379,0.61262478,88.624,88.582,0.62331964]
[1772736874093,0.61262478,88.631,88.584,0.62331964]
[1772736876496,0.61262478,88.629,88.586,0.62331964]
[1772736876997,0.61262478,88.619,88.574,0.62331964]
[1772736878076,0.61262478,88.609,88.572,11.05488898]
[1772736878275,0.61262478,88.609,88.573,11.29012227]
[1772736878487,0.61262478,88.608,88.573,11.29012227]
[1772736879194,0.61262478,88.608,88.573,11.91344191]
[1772736881382,0.61262478,88.606,88.573,11.91344191]
[1772736881684,0.61262478,88.606,88.564,11.91454913]
[1772736881883,0.61262478,88.606,88.565,0.62331964]
[1772736882187,0.61262478,88.599,88.551,0.62331964]
[1772736882708,0.61262478,88.597,88.553,0.62331964]
[1772736885509,0.61262478,88.595,88.555,0.62331964]
[1772736887283,0.61262478,88.595,88.554,11.29254466]
[1772736887284,0.61262478,88.595,88.557,0.62331964]
[1772736888307,0.61262478,88.593,88.557,0.62331964]
[1772736890009,0.61262478,88.593,88.559,0.62331964]
[1772736891013,0.61262478,88.611,88.559,0.28432314]
[1772736891310,11.28540796,88.61,88.56,0.62331964]
[1772736891514,0.61262478,88.609,88.56,0.62331964]
[1772736892103,0.61262478,88.607,88.562,0.62331964]
[1772736894317,0.61262478,88.605,88.564,0.62331964]
[1772736895400,11.28591743,88.606,88.566,0.62331964]
[1772736895711,0.61262478,88.605,88.566,0.62331964]
[1772736897206,0.61262478,88.612,88.568,0.62331964]
[1772736900796,39.49536211,88.618,88.57,0.63805367]
[1772736900797,0.58246678,88.61,88.57,0.63805367]
[1772736902420,0.58246678,88.641,88.573,0.63805367]
[1772736902594,0.58246678,88.639,88.576,0.63805367]
[1772736902796,0.72462835,88.637,88.581,0.63805367]
[1772736903109,0.58246678,88.629,88.581,0.63805367]
[1772736903817,0.58246678,88.637,88.582,0.63805367]
[1772736904821,0.58246678,88.649,88.585,0.63805367]
[1772736905021,0.58246678,88.648,88.585,0.63805367]
[1772736905732,0.58246678,88.639,88.585,0.63805367]
[1772736905941,11.28044309,88.649,88.585,0.63805367]
[1772736905942,0.58246678,88.629,88.585,0.63805367]
[1772736907825,0.58246678,88.627,88.587,0.63805367]
[1772736910138,0.58246678,88.625,88.587,0.63805367]
[1772736911413,0.58246678,88.625,88.589,0.63805367]
[1772736912431,39.4926882,88.624,88.589,0.63805367]
[1772736912653,0.58246678,88.619,88.583,11.2888176]
[1772736913515,0.58246678,88.619,88.582,0.63805367]
[1772736913711,0.58246678,88.609,88.565,0.63805367]
[1772736914624,0.58246678,88.607,88.567,0.63805367]
[1772736915026,11.28566269,88.608,88.567,0.63805367]
[1772736916632,11.28502589,88.613,88.569,0.63805367]
[1772736916938,0.58246678,88.628,88.57,0.63805367]
[1772736918819,0.58246678,88.626,88.572,0.63805367]
[1772736919015,0.58246678,88.626,88.555,0.63805367]
[1772736919016,0.58246678,88.609,88.555,0.63805367]
[1772736919235,0.58246678,88.609,88.556,0.63805367]
[1772736919927,2.47215037,105.31,88.556,0.63805367]
[1772736919928,0.58246678,88.616,88.557,0.63805367]
[1772736920953,0.58246678,88.635,88.56,0.63805367]
[1772736921153,0.58246678,88.631,88.563,0.63805367]
[1772736921537,0.1,88.68,88.563,0.63805367]
[1772736921733,0.58246679,88.67,88.578,5.46282936]
[1772736921955,0.58246679,88.67,88.602,0.63805367]
[1772736921956,0.58246678,88.669,88.602,0.63805367]
[1772736922338,0.58246678,88.669,88.605,0.63805367]
[1772736922863,0.58246678,88.669,88.607,0.63805367]
[1772736923076,0.58246678,88.669,88.61,0.63805367]
[1772736923244,1e-08,88.67,88.612,0.78021524]
[1772736924864,1e-08,88.67,88.614,0.78021524]
[1772736925052,1e-08,88.67,88.619,0.63805367]
[1772736925258,1e-08,88.67,88.62,0.63805367]
[1772736927162,0.58246678,88.669,88.622,0.63805367]
[1772736929363,0.58246678,88.669,88.603,0.28432314]
[1772736929364,0.61704093,88.667,88.624,0.61598948]
[1772736930960,0.61704093,88.667,88.619,11.28421915]
[1772736931161,0.61704093,88.667,88.618,0.61085271]
[1772736931540,0.60474648,88.659,88.62,0.61085271]
[1772736931744,0.60474648,88.659,88.587,102.0]
[1772736931745,0.60474648,88.659,88.601,0.61085271]
[1772736934869,0.60474648,88.657,88.603,0.61085271]
[1772736936869,0.60474648,88.655,88.605,0.61085271]
[1772736939480,0.60474648,88.653,88.607,0.61085271]
[1772736942686,56.67643309,88.665,88.609,0.61085271]
[1772736942687,0.60474648,88.651,88.609,0.61085271]
[1772736943477,11.28006136,88.652,88.609,0.61085271]
[1772736943670,0.60474648,88.651,88.61,0.61085271]
[1772736944872,0.60474648,88.649,88.612,0.61085271]
[1772736946071,0.60474648,88.649,88.606,11.28587806]
[1772736946270,0.60474648,88.649,88.607,0.61085271]
[1772736946887,0.60474648,88.647,88.609,0.61085271]
[1772736947063,39.4819962,88.648,88.609,0.61085271]
[1772736947064,11.28057034,88.648,88.609,0.61085271]
[1772736947790,0.60474648,88.647,88.609,0.61085271]
[1772736949190,0.60474648,88.645,88.611,0.61085271]
[1772736950191,11.28107937,88.644,88.612,11.28515325]
[1772736950377,0.60474648,88.643,88.608,0.61085271]
[1772736951793,0.60474648,88.654,88.608,0.61085271]
[1772736951991,0.60474648,88.658,88.609,0.61085271]
[1772736952399,11.2790083,88.661,88.612,0.61085271]
[1772736952574,11.88375478,88.661,88.612,0.61085271]
[1772736952773,0.60474648,88.66,88.612,0.61085271]
[1772736953406,11.27840174,88.666,88.615,0.61085271]
[1772736953574,11.27840174,88.666,88.618,0.61085271]
[1772736953778,1e-08,88.67,88.617,0.28432314]
[1772736953779,1e-08,88.67,88.621,0.61085271]
[1772736954003,1e-08,88.67,88.623,0.61085271]
[1772736954395,1e-08,88.67,88.626,0.61085271]
[1772736954574,1e-08,88.67,88.629,0.61085271]
[1772736956485,1e-08,88.67,88.632,0.61085271]
[1772736958100,1e-08,88.67,88.633,0.61085271]
[1772736958697,1e-08,88.67,88.635,0.61085271]
[1772736958880,1e-08,88.67,88.637,0.61085271]
[1772736959084,1e-08,88.67,88.638,0.61085271]
[1772736960804,1e-08,88.67,88.636,9.37730728]
[1772736960805,1e-08,88.67,88.641,0.61259537]
[1772736960997,1e-08,88.67,88.642,0.61259537]
[1772736961375,1e-08,88.67,88.641,9.37677833]
[1772736961376,1e-08,88.67,88.641,2.2295057]
[1772736964405,1e-08,88.67,88.642,11.2813339]
[1772736966101,1e-08,88.67,88.643,0.61259537]
[1772736966301,9.21794073,88.68,88.643,0.61259537]
[1772736966705,0.61521577,88.694,88.643,0.61259537]
[1772736966885,0.61521577,88.694,88.644,0.61259537]
[1772736967503,0.2,88.7,88.647,0.61259537]
[1772736967504,0.61521577,88.695,88.647,0.61259537]
[1772736968509,11.88993559,88.694,88.65,0.61259537]
[1772736969604,0.61521577,88.693,88.65,0.61259537]
[1772736970109,0.2,88.7,88.652,0.61259537]
[1772736970287,0.2,88.7,88.653,0.61259537]
[1772736970489,0.61521577,88.699,88.656,0.61259537]
[1772736970689,0.61521577,88.699,88.642,10.23270418]
[1772736970883,0.61521577,88.699,88.645,0.61259537]
[1772736971215,0.2,88.7,88.649,0.61259537]
[1772736971396,0.2,88.7,88.647,3.69383402]
[1772736971397,0.2,88.7,88.652,0.61259537]
[1772736972124,11.88930003,88.699,88.652,0.61259537]
[1772736972407,0.61521577,88.699,88.653,39.47976943]
[1772736972627,0.2,88.7,88.653,39.47976943]
[1772736972628,0.2,88.7,88.655,0.61259537]
[1772736972826,0.81521577,88.7,88.655,0.61259537]
[1772736973391,0.61521577,88.698,88.655,0.61259537]
[1772736974815,0.61521577,88.696,88.657,0.89691851]
[1772736974995,0.61521577,88.696,88.658,0.61259537]
[1772736975317,0.2,88.7,88.658,0.61259537]
[1772736975705,0.81521577,88.7,88.658,0.61259537]
[1772736975907,0.61521577,88.699,88.658,0.61259537]
[1772736976608,1e-08,88.7,88.66,0.61259537]
[1772736976812,1e-08,88.7,88.663,0.61259537]
[1772736977015,1e-08,88.7,88.666,0.61259537]
[1772736978702,1e-08,88.7,88.669,0.61259537]
[1772736979125,1e-08,88.7,88.672,0.61259537]
[1772736979424,1e-08,88.7,88.673,0.61259537]
[1772736979625,0.2,88.72,88.675,0.89691851]
[1772736979824,0.2,88.72,88.676,0.61259537]
[1772736980204,0.81521577,88.72,88.676,0.61259537]
[1772736980715,0.61521577,88.718,88.672,0.61259537]
[1772736981105,0.61521577,88.718,88.674,0.28432314]
[1772736981306,0.61521577,88.719,88.675,0.61259537]
[1772736981918,11.8867585,88.719,88.675,0.61259537]
[1772736982140,0.61521577,88.718,88.675,0.61259537]
[1772736982312,0.61521577,88.718,88.677,0.61259537]
[1772736984046,0.61521577,88.716,88.68,0.61259537]
[1772736988141,11.27205094,88.715,88.681,11.27637261]
[1772736988346,0.5995606,88.714,88.675,9.10118257]
[1772736988725,0.5995606,88.709,88.648,0.59909551]
[1772736991446,0.59616202,88.707,88.651,0.62492117]
[1772736992047,0.59616202,88.707,88.652,0.62492117]
[1772736993449,0.59616202,88.716,88.659,0.62492117]
[1772736993745,0.59616202,88.716,88.665,0.62492117]
[1772736994043,0.59616202,88.716,88.668,0.62492117]
[1772736994234,0.59616202,88.716,88.671,0.62492117]
[1772736994430,0.59616202,88.716,88.673,0.62492117]
[1772736994643,0.59616202,88.716,88.675,0.76708274]
[1772736994826,0.59616202,88.716,88.676,0.62492117]
[1772736995636,0.59616202,88.714,88.679,0.62492117]
[1772736999256,0.2,88.72,88.682,0.62492117]
[1772737000051,0.59616202,88.734,88.684,0.62492117]
[1772737000238,0.2,88.74,88.687,0.62492117]
[1772737000441,0.2,88.74,88.692,0.62492117]
[1772737000639,0.2,88.74,88.695,0.62492117]
[1772737000859,0.79616202,88.74,88.698,0.62492117]
[1772737001063,0.59616202,88.738,88.701,0.62492117]
[1772737001361,0.59616202,88.737,88.706,0.62492117]
[1772737002644,0.59616202,88.736,88.706,0.62492117]
[1772737003445,0.59616202,88.734,88.707,11.27306751]
[1772737005756,0.59616202,88.732,88.701,0.62492117]
[1772737005955,0.59616202,88.732,88.699,39.45929491]
[1772737005956,0.59616202,88.732,88.699,11.27408426]
[1772737007863,0.59616202,88.73,88.692,0.62492117]
[1772737008564,0.59616202,88.739,88.692,0.62492117]
[1772737009049,0.59616202,88.739,88.685,0.62492117]
[1772737010972,0.59616202,88.737,88.687,0.62492117]
[1772737011665,0.59616202,88.737,88.687,0.76708274]
[1772737011867,0.59616202,88.737,88.688,0.62492117]
[1772737012052,0.2,88.74,88.69,0.62492117]
[1772737012256,0.2,88.74,88.693,0.62492117]
[1772737012556,0.79616202,88.74,88.695,0.62492117]
[1772737012759,0.59616202,88.739,88.695,0.62492117]
[1772737012965,0.59616202,88.739,88.698,0.62492117]
[1772737013161,0.1,88.75,88.701,0.62492117]
[1772737013456,0.59616202,88.759,88.712,0.62492117]
[1772737013851,0.59616202,88.758,88.715,0.62492117]
[1772737015162,0.59616202,88.756,88.717,0.62492117]
[1772737015371,0.59616202,88.756,88.717,0.76708274]
[1772737015955,0.59616202,88.756,88.717,0.62492117]
[1772737016365,0.59616202,88.756,88.716,11.27192389]
[1772737016667,0.59616202,88.756,88.683,1.12761183]
[1772737016668,0.59616202,88.756,88.702,11.27360236]
[1772737016862,4.29142858,88.75,88.698,11.27419336]
[1772737017068,0.59616202,88.749,88.698,11.27419336]
[1772737017266,4.29142858,88.75,88.698,11.27419336]
[1772737017267,0.59616202,88.747,88.698,11.27419336]
[1772737019885,0.59616202,88.745,88.692,0.62492117]
[1772737022082,0.62532803,88.743,88.695,0.57881747]
[1772737022261,0.1,88.76,88.702,4.82477569]
[1772737022461,0.1,88.76,88.71,0.57881747]
[1772737022776,0.1,88.76,88.713,0.57881747]
[1772737023187,0.1,88.76,88.716,0.57881747]
[1772737023571,0.1,88.77,88.722,0.57881747]
[1772737023767,0.1,88.77,88.725,0.57881747]
[1772737024285,0.72532803,88.77,88.728,0.57881747]
[1772737025171,0.1,88.77,88.731,0.57881747]
[1772737025483,0.72532803,88.77,88.731,0.57881747]
[1772737026281,0.62532803,88.768,88.733,0.57881747]
[1772737027873,0.62532803,88.768,88.732,11.26989135]
[1772737028191,0.62532803,88.766,88.732,11.26989135]
[1772737028689,0.62532803,88.766,88.733,0.57881747]
[1772737031589,0.1,88.77,88.735,0.57881747]
[1772737031967,0.1,88.77,88.736,0.57881747]
[1772737033007,0.62532803,88.769,88.736,0.57881747]
[1772737033799,0.62532803,88.769,88.739,0.57881747]
[1772737034606,0.62532803,88.767,88.739,0.57881747]
[1772737035012,0.62532803,88.767,88.708,0.57881747]
[1772737035816,0.62532803,88.765,88.714,0.57881747]
[1772737036196,0.62532803,88.765,88.715,0.57881747]
[1772737039300,0.62532803,88.763,88.718,0.57881747]
[1772737040110,0.62532803,88.763,88.716,11.27192389]
[1772737040414,0.62532803,88.759,88.711,11.27248752]
[1772737041219,0.62532803,88.757,88.705,11.27332168]
[1772737042500,39.43395375,88.756,88.705,11.27332168]
[1772737042702,0.62532803,88.755,88.705,11.27332168]
[1772737043209,0.62532803,88.755,88.705,11.85213915]
[1772737043704,0.62532803,88.753,88.709,0.57881747]
[1772737045699,11.89052196,88.769,88.712,0.57881747]
[1772737045902,0.62532803,88.768,88.712,0.57881747]
[1772737046926,0.62532803,88.768,88.714,0.57881747]
[1772737047706,0.61339407,88.766,88.716,0.86517718]
[1772737048018,0.61339407,88.766,88.717,0.58085404]
[1772737050812,11.26570157,88.765,88.72,0.58680652]
[1772737051111,0.1,88.77,88.72,0.58680652]
[1772737051330,0.1,88.77,88.723,0.58680652]
[1772737052230,0.1,88.77,88.722,0.28432314]
[1772737052231,0.2,88.79,88.733,4.28064054]
[1772737052420,11.26265641,88.789,88.735,0.58680652]
[1772737052605,11.85658276,88.789,88.735,0.58680652]
[1772737052800,0.59392635,88.788,88.735,0.58680652]
[1772737053004,0.59392635,88.786,88.741,0.58680652]
[1772737057238,0.59392635,88.786,88.743,0.58680652]
[1772737059051,0.59392635,88.784,88.743,0.58680652]
[1772737059537,0.2,88.79,88.743,0.58680652]
[1772737059538,0.59392635,88.782,88.745,0.28432314]
[1772737059731,0.59392635,88.782,88.746,0.58680652]
[1772737059944,0.2,88.79,88.748,0.28432314]
[1772737060148,0.2,88.79,88.749,0.58680652]
[1772737060953,0.79392635,88.79,88.749,0.58680652]
[1772737061145,0.59392635,88.789,88.749,0.58680652]
[1772737061756,0.59392635,88.789,88.752,0.58680652]
[1772737061940,0.2,88.79,88.752,0.58680652]
[1772737062455,0.69392635,88.81,88.76,0.58680652]
[1772737062753,0.1,88.81,88.771,0.58680652]
[1772737063056,0.59392635,88.819,88.772,0.58680652]
[1772737063257,0.1,88.84,88.772,0.58680652]
[1772737063449,0.1,88.84,88.795,0.58680652]
[1772737063662,0.1,88.85,88.811,0.58680652]
[1772737063957,0.1,88.85,88.814,0.58680652]
[1772737064661,11.25057538,88.885,88.819,4.82477569]
[1772737064868,11.25057538,88.885,88.831,0.58680652]
[1772737065243,11.25087194,88.882,88.831,0.58680652]
[1772737065558,0.59392635,88.881,88.831,0.58680652]
[1772737065942,0.59392635,88.879,88.833,0.58680652]
[1772737067557,0.59392635,88.879,88.832,11.25720461]
[1772737068458,0.59392635,88.879,88.821,28.14645942]
[1772737068459,0.59392635,88.877,88.826,11.84477153]
[1772737068765,0.59392635,88.877,88.827,0.28432314]
[1772737068967,0.59392635,88.877,88.827,0.87112966]
[1772737069336,0.59392635,88.877,88.828,0.58680652]
[1772737070057,0.59392635,88.859,88.791,0.58680652]
[1772737070583,0.59392635,88.857,88.797,0.58680652]
[1772737070891,0.59392635,88.857,88.798,0.58680652]
[1772737071575,0.59392635,88.849,88.798,0.58680652]
[1772737072675,39.38868756,88.858,88.801,0.58680652]
[1772737072676,0.59392635,88.847,88.801,0.58680652]
[1772737074793,0.59392635,88.845,88.802,11.26100763]
[1772737075291,0.59392635,88.845,88.803,0.58680652]
[1772737076766,0.59392635,88.845,88.802,39.41352671]
[1772737076767,0.59392635,88.845,88.804,39.41263907]
[1772737076970,0.59392635,88.845,88.806,0.58680652]
[1772737077170,0.59392635,88.843,88.806,0.58680652]
[1772737078185,0.59392635,88.869,88.806,0.58680652]
[1772737078699,0.59392635,88.868,88.806,0.58680652]
[1772737079882,0.59392635,88.866,88.809,0.58680652]
[1772737081692,0.59392635,88.866,88.808,0.28432314]
[1772737081899,0.58044375,88.864,88.802,0.58579028]
[1772737084098,0.58044375,88.864,88.795,102.0]
[1772737084099,0.58044375,88.862,88.805,0.58579028]
[1772737084408,0.58044375,88.859,88.805,0.58579028]
[1772737084907,0.58044375,88.859,88.803,11.26088082]
[1772737085091,0.58044375,88.859,88.804,0.58579028]
[1772737085988,0.58044375,88.847,88.805,11.26062721]
[1772737086984,0.58044375,88.847,88.806,0.58579028]
[1772737087783,0.58044375,88.845,88.808,0.58579028]
[1772737088202,0.58044375,88.845,88.803,11.26081972]
[1772737088405,0.58044375,88.845,88.799,0.58579028]
[1772737088406,0.58044375,88.845,88.799,11.84712573]
[1772737089788,0.58044375,88.839,88.783,0.58579028]
[1772737089988,0.58044375,88.829,88.76,0.58579028]